fUSD/lending_fUSD_20240624
["ID","MTS","AMOUNT","RATE_DAILY","PERIOD"]
[330236113,1719203449769,-151.0,0.000202,2]
[330236114,1719203449778,-151.0,0.000202,2]
[330236115,1719203449788,-861.32,0.00020208,2]
[330236116,1719203449797,-840.09,0.00020208,2]
[330236117,1719203449806,-1716.51,0.00020208,2]
[330236118,1719203449815,-424.27,0.00020208,2]
[330236119,1719203449824,-418.39,0.00020208,2]
[330236120,1719203449833,-417.73,0.00020208,2]
[330236121,1719203449843,-151.0,0.0002023,2]
[330236122,1719203449852,-360.0,0.0002023,2]
[330236123,1719203449865,-151.0,0.0002023,2]
[330236124,1719203449874,-360.0,0.0002023,2]
[330236125,1719203449884,-151.0,0.0002023,2]
[330236126,1719203449896,-151.0,0.0002023,2]
[330236127,1719203449905,-26309.063,0.0002023,2]
[330236128,1719203449915,-840.35,0.0002023,2]
[330236129,1719203449924,-1197.0,0.0002023,2]
[330236130,1719203449934,-150.0,0.00020286,2]
[330236131,1719203449943,-475.10495739,0.00020287,2]
[330236132,1719203449952,-150.0,0.00020316,2]
[330236133,1719203449962,-720.44278656,0.00020354,2]
[330236134,1719203449971,-1263.2464365,0.00020354,2]
[330236135,1719203449981,-2129.37634002,0.00020354,2]
[330236136,1719203449990,-491.61691634,0.00020355,2]
[330236137,1719203449999,-150.0,0.00020367,2]
[330236138,1719203450009,-150.0,0.00020384,2]
[330236139,1719203450023,-1000.0,0.00020386,2]
[330236140,1719203450032,-3106.94505996,0.00020399,2]
[330236141,1719203450041,-511.0,0.000204,5]
[330236142,1719203450050,-2674.2470542,0.00020438,2]
[330236143,1719203450061,-1269.62890364,0.00020441,2]
[330236144,1719203450070,-150.0,0.00020461,2]
[330236145,1719203450079,-1964.71682931,0.00020499,7]
[330236146,1719203450089,-1133.92751376,0.00020531,2]
[330236147,1719203450101,-150.0,0.00020542,2]
[330236148,1719203450114,-1717.24944317,0.00020686,2]
[330236149,1719203450122,-151.0,0.00020686,2]
[330236150,1719203450131,-160.5076,0.00020686,2]
[330236151,1719203450296,-1000.0,0.000207,2]
[330236152,1719203450306,-10000.0,0.000207,2]
[330236153,1719203450316,-205.288783,0.000207,2]
[330236154,1719203450325,-205.288783,0.000207,2]
[330236155,1719203450335,-161.628173,0.000207,2]
[330236156,1719203450344,-161.628173,0.000207,2]
[330236157,1719203450354,-151.0,0.000207,2]
[330236158,1719203450370,-151.0,0.000207,2]
[330236159,1719203450379,-237.896335,0.000207,2]
[330236160,1719203450389,-151.0,0.000207,2]
[330236161,1719203450398,-237.896335,0.000207,2]
[330236162,1719203450408,-151.0,0.000207,2]
[330236163,1719203450417,-151.0,0.000207,2]
[330236164,1719203450427,-166.345377,0.000207,2]
[330236165,1719203450436,-915.665391,0.000207,2]
[330236166,1719203450445,-915.665391,0.000207,2]
[330236167,1719203450454,-151.0,0.000207,2]
[330236168,1719203450464,-470.344828,0.000207,2]
[330236169,1719203450473,-470.344828,0.000207,2]
[330236170,1719203450482,-250.729488,0.000207,2]
[330236171,1719203450492,-250.729488,0.000207,2]
[330236172,1719203450501,-151.0,0.000207,2]
[330236173,1719203450510,-264.64331,0.000207,2]
[330236174,1719203450519,-264.64331,0.000207,2]
[330236175,1719203450528,-151.0,0.000207,2]
[330236176,1719203450538,-151.0,0.000207,2]
[330236177,1719203450547,-258.305453,0.000207,2]
[330236178,1719203450556,-258.305453,0.000207,2]
[330236179,1719203450565,-151.0,0.000207,2]
[330236180,1719203450575,-371.093028,0.000207,2]
[330236181,1719203450584,-371.093028,0.000207,2]
[330236182,1719203450593,-226.399594,0.000207,2]
[330236183,1719203450602,-226.399594,0.000207,2]
[330236184,1719203450616,-151.0,0.000207,2]
[330236185,1719203450624,-151.0,0.000207,2]
[330236186,1719203450633,-151.0,0.000207,2]
[330236187,1719203450642,-796.527032,0.000207,2]
[330236188,1719203450650,-242.028532,0.000207,2]
[330236189,1719203450659,-151.0,0.000207,2]
[330236190,1719203450668,-796.527032,0.000207,2]
[330236191,1719203450677,-1326.167879,0.000207,2]
[330236192,1719203450686,-275.972644,0.000207,2]
[330236193,1719203450695,-185.433494,0.000207,2]
[330236194,1719203450705,-1326.167879,0.000207,2]
[330236195,1719203450714,-275.972644,0.000207,2]
[330236196,1719203450724,-151.0,0.000207,2]
[330236197,1719203450733,-160.409932,0.000207,2]
[330236198,1719203450742,-151.0,0.000207,2]
[330236199,1719203450751,-158.306231,0.000207,2]
[330236200,1719203450760,-195.436975,0.000207,2]
[330236201,1719203450769,-796.815612,0.000207,2]
[330236202,1719203450778,-796.815612,0.000207,2]
[330236203,1719203450788,-577.31209806,0.0002074,2]
[330236204,1719203450798,-150.0,0.00020787,30]
[330236205,1719203450807,-1757.44036792,0.00020788,2]
[330236206,1719203450816,-155.0,0.00020795,2]
[330236207,1719203450826,-955.85753929,0.00020795,2]
[330236208,1719203450835,-518.04242089,0.00020798,2]
[330236209,1719203450844,-196.20443442,0.00020798,2]
[330236210,1719203450854,-690.1937764,0.00020799,2]
[330236211,1719203450866,-151.0,0.000208,2]
[330236212,1719203450876,-151.0,0.000208,2]
[330236213,1719203450885,-151.0,0.000208,2]
[330236214,1719203450894,-171.65438,0.000208,2]
[330236215,1719203450903,-151.0,0.000208,2]
[330236216,1719203450913,-360.0,0.000208,2]
[330236217,1719203450923,-165.324188,0.000208,2]
[330236218,1719203450932,-360.0,0.000208,2]
[330236219,1719203450941,-151.0,0.000208,2]
[330236220,1719203450950,-151.0,0.000208,2]
[330236221,1719203450959,-151.0,0.000208,2]
[330236222,1719203450968,-160.169007,0.000208,2]
[330236223,1719203450978,-151.0,0.000208,2]
[330236224,1719203450987,-151.0,0.000208,2]
[330236225,1719203450996,-151.0,0.000208,2]
[330236226,1719203451005,-151.0,0.000208,2]
[330236227,1719203451021,-562.592208,0.000208,2]
[330236228,1719203451030,-152.848229,0.000208,2]
[330236229,1719203451039,-562.592208,0.000208,2]
[330236230,1719203451048,-152.848229,0.000208,2]
[330236231,1719203451059,-151.0,0.000208,2]
[330236232,1719203451068,-151.0,0.000208,2]
[330236233,1719203451077,-610.115158,0.000208,2]
[330236234,1719203451087,-610.115158,0.000208,2]
[330236235,1719203451098,-151.0,0.000208,2]
[330236236,1719203451110,-151.0,0.000208,2]
[330236237,1719203451119,-151.0,0.000208,2]
[330236238,1719203451127,-252.106766,0.000208,2]
[330236239,1719203451136,-252.106766,0.000208,2]
[330236240,1719203451145,-216.492705,0.000208,2]
[330236241,1719203451154,-151.0,0.000208,2]
[330236242,1719203451164,-211.366753,0.000208,2]
[330236243,1719203451173,-211.366753,0.000208,2]
[330236244,1719203451182,-167.526307,0.000208,2]
[330236245,1719203451191,-167.526307,0.000208,2]
[330236246,1719203451201,-1034.005207,0.000208,2]
[330236247,1719203451210,-325.47373,0.000208,2]
[330236248,1719203451219,-1034.005207,0.000208,2]
[330236249,1719203451228,-205.288783,0.000208,2]
[330236250,1719203451237,-325.47373,0.000208,2]
[330236251,1719203451247,-205.288783,0.000208,2]
[330236252,1719203451256,-253.181963,0.000208,2]
[330236253,1719203451266,-253.181963,0.000208,2]
[330236254,1719203451275,-161.628173,0.000208,2]
[330236255,1719203451284,-161.628173,0.000208,2]
[330236256,1719203451294,-151.0,0.000208,2]
[330236257,1719203451304,-151.0,0.000208,2]
[330236258,1719203451313,-237.896335,0.000208,2]
[330236259,1719203451322,-151.0,0.000208,2]
[330236260,1719203451332,-237.896335,0.000208,2]
[330236261,1719203451341,-151.0,0.000208,2]
[330236262,1719203451351,-151.0,0.000208,2]
[330236263,1719203451361,-915.665391,0.000208,2]
[330236264,1719203451371,-4744.247674,0.000208,2]
[330236265,1719203451380,-915.665391,0.000208,2]
[330236266,1719203451390,-158.418508,0.000208,2]
[330236267,1719203451399,-470.344828,0.000208,2]
[330236268,1719203451408,-470.344828,0.000208,2]
[330236269,1719203451417,-250.729488,0.000208,2]
[330236270,1719203451427,-250.729488,0.000208,2]
[330236271,1719203451436,-616331.684815,0.000208,2]
[330236272,1719203451446,-151.0,0.000208,2]
[330236273,1719203451455,-264.64331,0.000208,2]
[330236274,1719203451464,-264.64331,0.000208,2]
[330236275,1719203451474,-151.0,0.000208,2]
[330236276,1719203451483,-151.0,0.000208,2]
[330236277,1719203451493,-258.305453,0.000208,2]
[330236278,1719203451502,-258.305453,0.000208,2]
[330236279,1719203451511,-151.0,0.000208,2]
[330236280,1719203451521,-371.093028,0.000208,2]
[330236281,1719203451533,-371.093028,0.000208,2]
[330236282,1719203451542,-226.399594,0.000208,2]
[330236283,1719203451552,-226.399594,0.000208,2]
[330236284,1719203451561,-151.0,0.000208,2]
[330236285,1719203451571,-284.0,0.000208,2]
[330236286,1719203451580,-151.0,0.000208,2]
[330236287,1719203451589,-796.527032,0.000208,2]
[330236288,1719203451599,-151.0,0.000208,2]
[330236289,1719203451610,-796.527032,0.000208,2]
[330236290,1719203451619,-1326.167879,0.000208,2]
[330236291,1719203451628,-275.972644,0.000208,2]
[330236292,1719203451637,-1326.167879,0.000208,2]
[330236293,1719203451645,-275.972644,0.000208,2]
[330236294,1719203451655,-151.0,0.000208,2]
[330236295,1719203451664,-151.0,0.000208,2]
[330236296,1719203451673,-151.0,0.000208,2]
[330236297,1719203451682,-796.815612,0.000208,2]
[330236298,1719203451691,-796.815612,0.000208,2]
[330236299,1719203451700,-482.94283217,0.00020801,2]
[330236300,1719203451709,-1000.0,0.00020812,2]
[330236301,1719203451718,-1000.0,0.00020812,2]
[330236302,1719203451727,-155.0,0.00020812,2]
[330236303,1719203451736,-155.0,0.00020812,2]
[330236304,1719203451745,-269.30966923,0.00020812,2]
[330236305,1719203451755,-155.76801157,0.00020812,2]
[330236306,1719203451764,-159.54868315,0.00020812,2]
[330236307,1719203451773,-866.64783494,0.00020812,2]
[330236308,1719203451782,-622.21690927,0.00020812,2]
[330236309,1719203451791,-866.64783494,0.00020824,2]
[330236310,1719203451800,-158.86009896,0.00020824,2]
[330236311,1719203451810,-155.0,0.00020824,2]
[330236312,1719203451819,-462.48568697,0.00020824,2]
[330236313,1719203451828,-412.61839352,0.00020824,2]
[330236314,1719203451837,-187.96812151,0.00020824,2]
[330236315,1719203451847,-163.63235046,0.00020829,2]
[330236316,1719203451859,-163.63235046,0.00020829,2]
[330236317,1719203451869,-155.0,0.00020829,2]
[330236318,1719203451878,-158.27105518,0.00020829,2]
[330236319,1719203451887,-346.07679139,0.00020829,2]
[330236320,1719203451895,-155.0,0.00020829,2]
[330236321,1719203451908,-217.87188322,0.00020829,2]
[330236322,1719203451918,-217.87188322,0.00020831,2]
[330236323,1719203451926,-399.83668421,0.00020831,2]
[330236324,1719203451935,-155.0,0.00020831,2]
[330236325,1719203451944,-173.15431518,0.00020831,2]
[330236326,1719203451954,-150.0,0.00020835,2]
[330236327,1719203451963,-150.0,0.00020889,2]
[330236328,1719203451972,-150.0,0.0002089,2]
[330236329,1719203451981,-4454.52980697,0.00020899,2]
[330236330,1719203451991,-200.0,0.000209,7]
[330236331,1719203452001,-218.26771556,0.000209,2]
[330236332,1719203452011,-613.82257119,0.00020915,2]
[330236333,1719203452025,-1892.7375448,0.00020915,2]
[330236334,1719203452034,-151.0,0.00020921,2]
[330236335,1719203452043,-150.0,0.00020951,2]
[330236336,1719203452053,-326.82157281,0.00020957,2]
[330236337,1719203452063,-209.33095479,0.00020957,2]
[330236338,1719203452072,-527.94656447,0.00020981,2]
[330236339,1719203452082,-5594.31883355,0.00020995,2]
[330236340,1719203452092,-157.00303154,0.00020995,2]
[330236341,1719203452102,-253.90432169,0.00020997,2]
[330236342,1719203452115,-1841.4457659,0.00021,22]
[330236343,1719203452125,-1250.0,0.00021,2]
[330236344,1719203452134,-36766.03431836,0.00021,2]
[330236345,1719203452143,-202.552159,0.00021,2]
[330236346,1719203452152,-150.0,0.00021001,2]
[330236347,1719203452161,-9430.26318369,0.0002107,2]
[330236348,1719203452171,-209.96997035,0.00021079,2]
[330236349,1719203452180,-150.0,0.00021085,2]
[330236350,1719203452190,-150.0,0.00021093,2]
[330236351,1719203452199,-202.01464141,0.00021094,3]
[330236352,1719203452208,-150.0,0.0002112,2]
[330236353,1719203452217,-150.0,0.00021139,2]
[330236354,1719203452227,-1001.68,0.0002115,2]
[330236355,1719203452236,-1001.68,0.0002115,2]
[330236356,1719203452245,-752.89626443,0.00021169,2]
[330236357,1719203452254,-155.0,0.00021178,2]
[330236358,1719203452263,-1493.37730779,0.00021178,2]
[330236359,1719203452272,-1493.37730779,0.00021178,2]
[330236360,1719203452281,-543.96475932,0.00021189,2]
[330236361,1719203452290,-198.82330981,0.00021195,2]
[330236362,1719203452299,-150.0,0.00021225,2]
[330236363,1719203452308,-2674.2470542,0.00021255,2]
[330236364,1719203452317,-150.0,0.00021277,2]
[330236365,1719203452326,-150.0,0.00021284,2]
[330236366,1719203452334,-150.0,0.00021307,2]
[330236367,1719203452343,-313.72,0.0002133,2]
[330236368,1719203452352,-532.71676313,0.00021359,2]
[330236369,1719203452363,-150.0,0.00021359,2]
[330236370,1719203452372,-450.15761108,0.00021369,2]
[330236371,1719203452380,-151.0,0.0002137,2]
[330236372,1719203452390,-296.832154,0.0002137,2]
[330236373,1719203452399,-174.917193,0.0002137,2]
[330236374,1719203452408,-296.832154,0.0002137,2]
[330236375,1719203452417,-174.917193,0.0002137,2]
[330236376,1719203452425,-202.812366,0.0002137,2]
[330236377,1719203452434,-202.812366,0.0002137,2]
[330236378,1719203452443,-151.0,0.0002137,2]
[330236379,1719203452453,-151.0,0.0002137,2]
[330236380,1719203452462,-151.0,0.0002137,2]
[330236381,1719203452471,-187.172771,0.0002137,2]
[330236382,1719203452480,-187.172771,0.0002137,2]
[330236383,1719203452489,-151.0,0.0002137,2]
[330236384,1719203452498,-151.0,0.0002137,2]
[330236385,1719203452507,-151.0,0.0002137,2]
[330236386,1719203452516,-151.0,0.0002137,2]
[330236387,1719203452525,-657.297499,0.0002137,2]
[330236388,1719203452534,-151.0,0.0002137,2]
[330236389,1719203452543,-657.297499,0.0002137,2]
[330236390,1719203452552,-152.976913,0.0002137,2]
[330236391,1719203452561,-152.976913,0.0002137,2]
[330236392,1719203452570,-151.0,0.0002137,2]
[330236393,1719203452579,-151.0,0.0002137,2]
[330236394,1719203452588,-151.0,0.0002137,2]
[330236395,1719203452597,-402.856534,0.0002137,2]
[330236396,1719203452606,-402.856534,0.0002137,2]
[330236397,1719203452615,-151.0,0.0002137,2]
[330236398,1719203452624,-154.324463,0.0002137,2]
[330236399,1719203452633,-150.0,0.00021371,2]
[330236400,1719203452642,-151.0,0.00021419,2]
[330236401,1719203452651,-150.0,0.00021467,2]
[330236402,1719203452660,-359.02395021,0.00021478,2]
[330236403,1719203452669,-235.46770595,0.00021492,2]
[330236404,1719203452677,-770.94549673,0.00021572,2]
[330236405,1719203452686,-150.0,0.00021586,2]
[330236406,1719203452695,-1729.20264835,0.000216,3]
[330236407,1719203452705,-1012.0,0.000216,2]
[330236408,1719203452714,-150.0,0.00021606,2]
[330236409,1719203452723,-176.45216287,0.00021615,2]
[330236410,1719203452732,-155.0,0.00021615,2]
[330236411,1719203452742,-150.0,0.00021629,2]
[330236412,1719203452751,-150.0,0.0002163,2]
[330236413,1719203452760,-150.0,0.00021631,2]
[330236414,1719203452769,-150.0,0.00021639,2]
[330236415,1719203452779,-150.0,0.00021639,2]
[330236416,1719203452788,-150.0,0.00021641,2]
[330236417,1719203452797,-188.24,0.00021644,2]
[330236418,1719203452806,-154.78,0.00021644,2]
[330236419,1719203452815,-398.71,0.00021644,2]
[330236420,1719203452825,-246.36,0.00021644,2]
[330236421,1719203452834,-426.64,0.00021644,2]
[330236422,1719203452844,-150.0,0.00021645,2]
[330236423,1719203452853,-150.0,0.00021659,2]
[330236424,1719203452863,-150.0,0.0002166,2]
[330236425,1719203452873,-150.0,0.00021662,2]
[330236426,1719203452883,-150.0,0.00021663,2]
[330236427,1719203452892,-150.0,0.00021665,2]
[330236428,1719203452901,-151.0,0.00021669,2]
[330236429,1719203452910,-151.0,0.00021669,2]
[330236430,1719203452919,-150.0,0.00021672,2]
[330236431,1719203452928,-150.0,0.00021673,2]
[330236432,1719203452938,-150.0,0.00021683,2]
[330236433,1719203452947,-150.0,0.00021689,2]
[330236434,1719203452956,-519.86065789,0.00021689,2]
[330236435,1719203452966,-1940.25974927,0.00021689,2]
[330236436,1719203452976,-150.0,0.00021691,2]
[330236437,1719203452985,-150.0,0.00021693,2]
[330236438,1719203452995,-150.0,0.00021697,2]
[330236439,1719203453004,-150.0,0.000217,2]
[330236440,1719203453020,-150.0,0.000217,2]
[330236441,1719203453029,-150.0,0.00021703,2]
[330236442,1719203453038,-191.17750657,0.00021704,2]
[330236443,1719203453048,-368.47136735,0.00021704,2]
[330236444,1719203453059,-155.15596833,0.00021706,2]
[330236445,1719203453068,-150.0,0.00021714,2]
[330236446,1719203453078,-150.0,0.00021717,2]
[330236447,1719203453087,-150.0,0.00021733,2]
[330236448,1719203453096,-179.09829216,0.00021734,2]
[330236449,1719203453105,-179.09829216,0.00021734,2]
[330236450,1719203453115,-150.0,0.00021738,2]
[330236451,1719203453124,-150.0,0.00021739,2]
[330236452,1719203453133,-150.0,0.00021762,2]
[330236453,1719203453142,-150.0,0.00021764,2]
[330236454,1719203453152,-150.0,0.00021767,2]
[330236455,1719203453161,-150.0,0.0002177,2]
[330236456,1719203453170,-150.0,0.00021775,2]
[330236457,1719203453331,-150.0,0.00021777,2]
[330236458,1719203453342,-150.0,0.00021787,2]
[330236459,1719203453351,-150.0,0.0002179,2]
[330236460,1719203453362,-305.13007106,0.00021799,2]
[330236461,1719203453372,-200.0,0.000218,7]
[330236462,1719203453381,-440430.72145848,0.000218,2]
[330236463,1719203453391,-151.0,0.000218,2]
[330236464,1719203453399,-151.0,0.000218,2]
[330236465,1719203453408,-152.602077,0.000218,2]
[330236466,1719203453418,-152.602077,0.000218,2]
[330236467,1719203453427,-538.766268,0.000218,2]
[330236468,1719203453436,-151.0,0.000218,2]
[330236469,1719203453445,-151.0,0.000218,2]
[330236470,1719203453455,-151.0,0.000218,2]
[330236471,1719203453464,-151.0,0.000218,2]
[330236472,1719203453473,-296.832154,0.000218,2]
[330236473,1719203453482,-174.917193,0.000218,2]
[330236474,1719203453491,-296.832154,0.000218,2]
[330236475,1719203453501,-174.917193,0.000218,2]
[330236476,1719203453510,-202.812366,0.000218,2]
[330236477,1719203453520,-202.812366,0.000218,2]
[330236478,1719203453529,-158.519724,0.000218,2]
[330236479,1719203453538,-151.0,0.000218,2]
[330236480,1719203453547,-151.0,0.000218,2]
[330236481,1719203453557,-187.172771,0.000218,2]
[330236482,1719203453567,-187.172771,0.000218,2]
[330236483,1719203453576,-151.0,0.000218,2]
[330236484,1719203453585,-151.0,0.000218,2]
[330236485,1719203453594,-151.0,0.000218,2]
[330236486,1719203453603,-168.625549,0.000218,2]
[330236487,1719203453613,-657.297499,0.000218,2]
[330236488,1719203453623,-151.0,0.000218,2]
[330236489,1719203453633,-657.297499,0.000218,2]
[330236490,1719203453642,-152.976913,0.000218,2]
[330236491,1719203453651,-152.976913,0.000218,2]
[330236492,1719203453660,-151.0,0.000218,2]
[330236493,1719203453669,-151.0,0.000218,2]
[330236494,1719203453678,-151.0,0.000218,2]
[330236495,1719203453688,-402.856534,0.000218,2]
[330236496,1719203453697,-402.856534,0.000218,2]
[330236497,1719203453706,-151.0,0.000218,2]
[330236498,1719203453716,-151.0,0.000218,2]
[330236499,1719203453725,-151.0,0.000218,2]
[330236500,1719203453734,-562.592208,0.000218,2]
[330236501,1719203453743,-152.848229,0.000218,2]
[330236502,1719203453753,-562.592208,0.000218,2]
[330236503,1719203453762,-152.848229,0.000218,2]
[330236504,1719203453771,-151.0,0.000218,2]
[330236505,1719203453780,-151.0,0.000218,2]
[330236506,1719203453789,-610.115158,0.000218,2]
[330236507,1719203453799,-610.115158,0.000218,2]
[330236508,1719203453808,-151.0,0.000218,2]
[330236509,1719203453817,-242.269181,0.000218,2]
[330236510,1719203453826,-151.0,0.000218,2]
[330236511,1719203453836,-252.106766,0.000218,2]
[330236512,1719203453845,-252.106766,0.000218,2]
[330236513,1719203453855,-151.0,0.000218,2]
[330236514,1719203453864,-211.366753,0.000218,2]
[330236515,1719203453874,-211.366753,0.000218,2]
[330236516,1719203453883,-167.526307,0.000218,2]
[330236517,1719203453892,-167.526307,0.000218,2]
[330236518,1719203453901,-1034.005207,0.000218,2]
[330236519,1719203453911,-325.47373,0.000218,2]
[330236520,1719203453920,-1034.005207,0.000218,2]
[330236521,1719203453930,-205.288783,0.000218,2]
[330236522,1719203453939,-325.47373,0.000218,2]
[330236523,1719203453948,-205.288783,0.000218,2]
[330236524,1719203453957,-253.181963,0.000218,2]
[330236525,1719203453966,-253.181963,0.000218,2]
[330236526,1719203453975,-161.628173,0.000218,2]
[330236527,1719203453984,-161.628173,0.000218,2]
[330236528,1719203453994,-151.0,0.000218,2]
[330236529,1719203454003,-151.0,0.000218,2]
[330236530,1719203454014,-237.896335,0.000218,2]
[330236531,1719203454026,-151.0,0.000218,2]
[330236532,1719203454036,-237.896335,0.000218,2]
[330236533,1719203454046,-151.0,0.000218,2]
[330236534,1719203454056,-151.0,0.000218,2]
[330236535,1719203454068,-915.665391,0.000218,2]
[330236536,1719203454078,-4744.247674,0.000218,2]
[330236537,1719203454088,-915.665391,0.000218,2]
[330236538,1719203454101,-470.344828,0.000218,2]
[330236539,1719203454113,-470.344828,0.000218,2]
[330236540,1719203454123,-250.729488,0.000218,2]
[330236541,1719203454132,-250.729488,0.000218,2]
[330236542,1719203454142,-151.0,0.000218,2]
[330236543,1719203454152,-264.64331,0.000218,2]
[330236544,1719203454161,-264.64331,0.000218,2]
[330236545,1719203454170,-151.0,0.000218,2]
[330236546,1719203454179,-151.0,0.000218,2]
[330236547,1719203454188,-258.305453,0.000218,2]
[330236548,1719203454197,-258.305453,0.000218,2]
[330236549,1719203454207,-151.0,0.000218,2]
[330236550,1719203454216,-371.093028,0.000218,2]
[330236551,1719203454225,-371.093028,0.000218,2]
[330236552,1719203454235,-226.399594,0.000218,2]
[330236553,1719203454245,-226.399594,0.000218,2]
[330236554,1719203454254,-151.0,0.000218,2]
[330236555,1719203454263,-151.0,0.000218,2]
[330236556,1719203454273,-796.527032,0.000218,2]
[330236557,1719203454282,-151.0,0.000218,2]
[330236558,1719203454292,-796.527032,0.000218,2]
[330236559,1719203454301,-1326.167879,0.000218,2]
[330236560,1719203454311,-275.972644,0.000218,2]
[330236561,1719203454321,-1326.167879,0.000218,2]
[330236562,1719203454330,-275.972644,0.000218,2]
[330236563,1719203454339,-151.0,0.000218,2]
[330236564,1719203454348,-151.0,0.000218,2]
[330236565,1719203454358,-151.0,0.000218,2]
[330236566,1719203454367,-796.815612,0.000218,2]
[330236567,1719203454376,-796.815612,0.000218,2]
[330236568,1719203454386,-150.0,0.00021802,2]
[330236569,1719203454395,-150.0,0.00021808,2]
[330236570,1719203454404,-150.0,0.0002181,2]
[330236571,1719203454414,-150.0,0.00021812,2]
[330236572,1719203454423,-296.51463104,0.00021816,2]
[330236573,1719203454432,-155.0,0.00021816,2]
[330236574,1719203454442,-613.82257119,0.00021817,2]
[330236575,1719203454451,-1717.24944317,0.00021817,2]
[330236576,1719203454460,-1892.7375448,0.00021817,2]
[330236577,1719203454470,-199.42300421,0.00021817,2]
[330236578,1719203454479,-150.0,0.00021827,2]
[330236579,1719203454489,-150.0,0.00021828,2]
[330236580,1719203454498,-150.0,0.00021837,2]
[330236581,1719203454507,-150.0,0.0002184,2]
[330236582,1719203454517,-150.0,0.0002185,2]
[330236583,1719203454527,-150.0,0.00021859,2]
[330236584,1719203454537,-150.0,0.00021862,2]
[330236585,1719203454546,-150.0,0.0002187,2]
[330236586,1719203454555,-151.66,0.00021877,2]
[330236587,1719203454565,-526.77760636,0.00021884,2]
[330236588,1719203454574,-200.0,0.000219,7]
[330236589,1719203454583,-2000.0,0.000219,2]
[330236590,1719203454592,-2000.0,0.000219,2]
[330236591,1719203454601,-490.0,0.000219,4]
[330236592,1719203454611,-525.0,0.000219,2]
[330236593,1719203454621,-525.0,0.000219,2]
[330236594,1719203454631,-1314.0,0.000219,2]
[330236595,1719203454640,-190.0,0.000219,4]
[330236596,1719203454649,-250.0,0.000219,2]
[330236597,1719203454659,-250.0,0.000219,2]
[330236598,1719203454668,-250.0,0.000219,2]
[330236599,1719203454677,-250.0,0.000219,2]
[330236600,1719203454686,-250.0,0.000219,2]
[330236601,1719203454696,-250.0,0.000219,2]
[330236602,1719203454705,-250.0,0.000219,2]
[330236603,1719203454714,-250.0,0.000219,2]
[330236604,1719203454724,-324.3,0.000219,2]
[330236605,1719203454734,-155.0,0.000219,2]
[330236606,1719203454744,-489.0,0.000219,4]
[330236607,1719203454753,-330.0,0.000219,9]
[330236608,1719203454763,-1000.0,0.000219,2]
[330236609,1719203454772,-192.534549,0.00021902,2]
[330236610,1719203454782,-213.5826503,0.00021902,2]
[330236611,1719203454792,-234.6307517,0.00021902,2]
[330236612,1719203454802,-255.6788531,0.00021902,2]